fUST/lending_fUST_20240419
["ID","MTS","AMOUNT","RATE_DAILY","PERIOD"]
[322920353,1713508589867,154.86062544,0.00019961,2]
[322920354,1713508594109,157.41918185,0.00020065,2]
[322920355,1713508622826,154.86062544,0.00019961,2]
[322920357,1713508660822,154.86062544,0.00019959,2]
[322920359,1713508954308,15850.5097696,0.00019158,2]
[322920360,1713508969000,456.9521586,0.00020053,2]
[322920361,1713508990142,157.41918185,0.00020053,2]
[322920364,1713509179620,360.87163647,0.0002,2]
[322920365,1713509214181,-300.0,0.00020144,2]
[322920366,1713509214201,-7881.23687923,0.00020144,2]
[322920367,1713509282483,399.83313874,0.00020042,2]
[322920369,1713509323815,349.514436,0.00019402,2]
[322920484,1713509438853,-300.0,0.00020136,2]
[322920485,1713509438863,-335.0,0.00020137,2]
[322920486,1713509438927,-8938.5157559,0.00020137,2]
[322920487,1713509438939,-639.755913,0.00020137,2]
[322920525,1713509441890,-624.71906423,0.00020136,2]
[322920526,1713509441902,-12791.4,0.00020136,2]
[322920527,1713509441961,-2480.74540206,0.00020136,2]
[322920567,1713509444005,-8181.23687923,0.00020136,2]
[322920588,1713509447047,-35034.54694294,0.00020136,2]
[322920589,1713509447057,-62597.14562077,0.00020137,2]
[322920590,1713509447066,-300.0,0.00020137,2]
[322920592,1713509447075,-300.0,0.00020137,2]
[322920593,1713509447086,-580.38871273,0.00020145,2]
[322920594,1713509447095,-154.84515485,0.00020156,2]
[322920595,1713509447105,-155.11148496,0.00021168,2]
[322920596,1713509447114,-461.2725287,0.00021168,2]
[322920597,1713509447123,-424.18807571,0.00021168,2]
[322920598,1713509447132,-170.54852013,0.00021168,2]
[322920599,1713509447141,-420.0,0.00021923,2]
[322920600,1713509447151,-420.0,0.0002215,2]
[322920601,1713509447160,-500.0,0.00023,2]
[322920602,1713509447169,-783.87866091,0.00023479,2]
[322920603,1713509447178,-2503.30434286,0.00023498,2]
[322920604,1713509447187,-500.0,0.000235,2]
[322920605,1713509447196,-1086.80536715,0.00023503,2]
[322920606,1713509447205,-5077.95481542,0.00023503,2]
[322920607,1713509447214,-155.37410342,0.00023503,2]
[322920608,1713509447223,-167.40572142,0.00023503,2]
[322920609,1713509447232,-937.89373734,0.00023503,2]
[322920610,1713509447241,-156.84586358,0.00023503,2]
[322920611,1713509447250,-272.32070711,0.00023503,2]
[322920612,1713509447260,-155.0025218,0.00023503,2]
[322920613,1713509447269,-602.61216035,0.00023503,2]
[322920614,1713509447279,-6518.58443311,0.00023504,2]
[322920615,1713509447288,-672.6914059,0.00023504,2]
[322920616,1713509447299,-1000.0,0.000238,2]
[322920617,1713509447309,-1000.0,0.000238,3]
[322920618,1713509447318,-587.0,0.00023869,2]
[322920619,1713509447328,-500.0,0.00024,2]
[322920620,1713509447343,-587.0,0.00024365,2]
[322920621,1713509447353,-415.7272279,0.0002449,2]
[322920622,1713509447362,-500.0,0.000245,2]
[322920623,1713509447371,-200.0,0.00024658,15]
[322920624,1713509447381,-220.44087813,0.00025,2]
[322920625,1713509447390,-157.11152244,0.00025,2]
[322920626,1713509447399,-500.0,0.00025,2]
[322920627,1713509447409,-500.0,0.000255,2]
[322920628,1713509447419,-358.0,0.00025987,2]
[322920629,1713509447428,-570.87,0.00026,7]
[322920630,1713509447437,-500.0,0.00026,2]
[322920631,1713509447446,-202.6708306,0.00026079,2]
[322920632,1713509447455,-153.0,0.00026079,2]
[322920633,1713509447464,-153.0,0.00026079,2]
[322920634,1713509447473,-152.0,0.00026102,2]
[322920635,1713509447482,-764.0,0.000262,2]
[322920636,1713509447491,-500.0,0.000265,2]
[322920637,1713509447501,-399.83313872,0.00026558,3]
[322920638,1713509447510,-167.98399902,0.0002673,2]
[322920639,1713509447519,-823.0,0.00026802,2]
[322920640,1713509447529,-620.05839517,0.00026806,2]
[322920641,1713509447538,-153.0,0.00026901,2]
[322920642,1713509447547,-332.21467201,0.00027,2]
[322920643,1713509447556,-950.0,0.00027,2]
[322920644,1713509447565,-169.028357,0.00027,2]
[322920645,1713509447574,-417.0,0.00027136,2]
[322920646,1713509447583,-150.258,0.00027136,2]
[322920647,1713509447597,-397.98798933,0.00027397,2]
[322920648,1713509447606,-169.364941,0.00027397,2]
[322920649,1713509447615,-718.872863,0.00027397,2]
[322920650,1713509447625,-1000.0,0.00027397,2]
[322920651,1713509447634,-166.666666,0.00027397,2]
[322920652,1713509447643,-153.0,0.00027519,2]
[322920653,1713509447652,-166.666666,0.00028038,2]
[322920654,1713509447662,-155.12167865,0.00028498,2]
[322920658,1713509447823,-210.33231809,0.00028583,2]
[322920659,1713509447837,-166.666666,0.00028679,2]
[322920660,1713509447847,-349.514436,0.00029104,2]
[322920661,1713509447856,-153.0,0.00029205,2]
[322920662,1713509447866,-153.0,0.00029205,2]
[322920663,1713509447875,-153.0,0.00029205,2]
[322920664,1713509447885,-153.0,0.00029205,2]
[322920665,1713509447894,-153.0,0.00029205,2]
[322920666,1713509447903,-166.666666,0.00029321,2]
[322920667,1713509447914,-1152.0,0.00029482,2]
[322920668,1713509447923,-153.0,0.0002989,2]
[322920669,1713509447934,-153.1866322,0.0002989,2]
[322920670,1713509447944,-153.0,0.0002989,2]
[322920671,1713509447953,-203.3901934,0.0002989,2]
[322920672,1713509447963,-203.3901934,0.0002989,2]
[322920673,1713509447972,-153.0,0.0002989,2]
[322920674,1713509447981,-153.0,0.0002989,2]
[322920675,1713509447991,-203.3901934,0.0002989,2]
[322920676,1713509448001,-153.0,0.0002989,2]
[322920677,1713509448011,-203.3901934,0.0002989,2]
[322920678,1713509448020,-153.0,0.0002989,2]
[322920679,1713509448029,-203.3901934,0.0002989,2]
[322920680,1713509448039,-428.1637883,0.0002989,2]
[322920681,1713509448049,-153.0,0.0002989,2]
[322920682,1713509448058,-153.0,0.0002989,2]
[322920683,1713509448067,-153.0,0.0002989,2]
[322920684,1713509448077,-153.0,0.0002989,2]
[322920685,1713509448090,-153.0,0.0002989,2]
[322920686,1713509448099,-153.0,0.00029945,2]
[322920687,1713509448109,-153.0,0.00029945,2]
[322920688,1713509448119,-153.0,0.00029945,2]
[322920689,1713509448128,-153.0,0.00029945,2]
[322920690,1713509448138,-153.0,0.00029945,2]
[322920692,1713509448148,-153.0,0.00029945,2]
[322920693,1713509448157,-153.0,0.00029945,2]
[322920694,1713509448166,-153.0,0.00029945,2]
[322920695,1713509448175,-352.0960175,0.00029945,2]
[322920696,1713509448184,-166.666666,0.00029962,2]
[322920697,1713509448193,-206.7669306,0.00029989,2]
[322920698,1713509448202,-1817.18040102,0.00029989,2]
[322920699,1713509448211,-1705.92,0.0002999,3]
[322920700,1713509448221,-362.4137179,0.00029997,2]
[322920701,1713509448230,-348.61160566,0.00029997,2]
[322920702,1713509448240,-838.63600533,0.00029998,2]
[322920703,1713509448249,-953.95469857,0.00029998,2]
[322920704,1713509448258,-1012.78245529,0.00029998,2]
[322920705,1713509448267,-227.03385285,0.00029998,2]
[322920706,1713509448276,-158.82147653,0.00029998,2]
[322920707,1713509448286,-549.41724312,0.00029998,2]
[322920708,1713509448295,-259.12295949,0.00029998,2]
[322920709,1713509448304,-408.73462721,0.00029998,2]
[322920710,1713509448314,-241.30671673,0.00029998,2]
[322920711,1713509448323,-625.05752544,0.00029998,2]
[322920712,1713509448332,-1672.08372803,0.00029998,2]
[322920713,1713509448349,-154.8961369,0.00029998,2]
[322920714,1713509448358,-440.09151511,0.00029998,2]
[322920715,1713509448368,-688.27982774,0.00029998,2]
[322920716,1713509448377,-157.36951775,0.00029998,2]
[322920717,1713509448386,-294.56448111,0.00029999,2]
[322920718,1713509448396,-333.56525219,0.00029999,2]
[322920719,1713509448405,-166.47725677,0.00029999,2]
[322920720,1713509448415,-210.00990646,0.00029999,2]
[322920721,1713509448424,-500.42,0.0003,2]
[322920722,1713509448433,-393.16911011,0.0003,2]
[322920723,1713509448443,-2391.61520885,0.0003,4]
[322920724,1713509448452,-382.0,0.0003,30]
[322920725,1713509448462,-79570.66424926,0.0003,30]
[322920726,1713509448471,-374.0,0.0003,2]
[322920727,1713509448480,-1211.28605683,0.00030007,7]
[322920728,1713509448490,-23596.98343115,0.00030036,3]
[322920729,1713509448500,-151.0,0.00030036,2]
[322920730,1713509448509,-3080.31602598,0.00030036,2]
[322920731,1713509448519,-4469.08241087,0.0003008,3]
[322920732,1713509448529,-160.69152827,0.00030135,10]
[322920733,1713509448538,-417.0,0.00030136,2]
[322920734,1713509448548,-95483.84816979,0.00030136,5]
[322920735,1713509448557,-500.0,0.00030136,2]
[322920736,1713509448567,-500.0,0.00030136,6]
[322920737,1713509448576,-500.0,0.00030136,2]
[322920738,1713509448590,-500.0,0.00030136,6]
[322920739,1713509448599,-500.0,0.00030136,6]
[322920740,1713509448608,-500.0,0.00030136,6]
[322920741,1713509448617,-500.0,0.00030136,6]
[322920742,1713509448627,-518.01156463,0.00030136,6]
[322920743,1713509448636,-1067.36,0.00030136,6]
[322920744,1713509448646,-504.46610224,0.00030136,6]
[322920745,1713509448656,-500.0,0.00030136,6]
[322920746,1713509448665,-500.0,0.00030136,6]
[322920747,1713509448674,-500.0,0.00030136,6]
[322920748,1713509448684,-647.52432979,0.00030136,6]
[322920749,1713509448693,-505.20306845,0.00030136,6]
[322920750,1713509448702,-357.57429868,0.00030136,6]
[322920751,1713509448711,-500.0,0.00030136,6]
[322920752,1713509448721,-500.0,0.00030136,6]
[322920753,1713509448730,-538.83795198,0.00030136,6]
[322920754,1713509448739,-500.0,0.00030136,6]
[322920755,1713509448748,-513.43734417,0.00030136,6]
[322920756,1713509448757,-838.48,0.00030136,6]
[322920757,1713509448766,-500.0,0.00030136,6]
[322920758,1713509448776,-446.89087899,0.00030136,6]
[322920759,1713509448785,-500.0,0.00030136,6]
[322920760,1713509448794,-500.0,0.00030136,6]
[322920761,1713509448804,-500.0,0.00030136,6]
[322920762,1713509448813,-500.0,0.00030136,6]
[322920763,1713509448823,-500.0,0.00030136,6]
[322920764,1713509448832,-500.0,0.00030136,6]
[322920765,1713509448849,-500.0,0.00030136,6]
[322920766,1713509448858,-500.0,0.00030136,6]
[322920767,1713509448868,-500.0,0.00030136,6]
[322920768,1713509448877,-518.38854583,0.00030136,6]
[322920769,1713509448887,-509.57382265,0.00030136,6]
[322920770,1713509448896,-500.0,0.00030136,6]
[322920771,1713509448906,-500.0,0.00030136,6]
[322920772,1713509448916,-500.0,0.00030136,6]
[322920773,1713509448926,-500.0,0.00030136,6]
[322920774,1713509448937,-642.82,0.00030136,6]
[322920775,1713509448946,-500.0,0.00030136,6]
[322920776,1713509448956,-500.0,0.00030136,6]
[322920777,1713509448966,-506.88985607,0.00030136,6]
[322920778,1713509448977,-515.12513887,0.00030136,6]
[322920779,1713509448987,-500.0,0.00030136,6]
[322920780,1713509448997,-500.0,0.00030136,6]
[322920781,1713509449007,-500.0,0.00030136,6]
[322920782,1713509449017,-500.0,0.00030136,6]
[322920783,1713509449028,-500.0,0.00030136,6]
[322920784,1713509449037,-500.0,0.00030136,6]
[322920785,1713509449047,-500.0,0.00030136,6]
[322920786,1713509449056,-500.0,0.00030136,6]
[322920787,1713509449065,-500.0,0.00030136,6]
[322920788,1713509449074,-689.63,0.00030136,6]
[322920789,1713509449086,-500.0,0.00030136,6]
[322920790,1713509449099,-500.0,0.00030136,6]
[322920791,1713509449108,-996.43,0.00030136,6]
[322920792,1713509449118,-500.0,0.00030136,6]
[322920793,1713509449128,-575.34224882,0.00030136,6]
[322920794,1713509449137,-500.0,0.00030136,2]
[322920795,1713509449147,-500.0,0.00030136,6]
[322920796,1713509449156,-500.0,0.00030136,6]
[322920797,1713509449165,-500.0,0.00030136,6]
[322920798,1713509449175,-500.0,0.00030136,6]
[322920799,1713509449184,-309.81413939,0.00030136,6]
[322920800,1713509449194,-421.83654785,0.00030136,6]
[322920801,1713509449203,-464.59735,0.00030136,2]
[322920802,1713509449213,-500.0,0.00030136,6]
[322920803,1713509449223,-1786.65,0.00030136,6]
[322920804,1713509449232,-500.0,0.00030136,6]
[322920805,1713509449241,-500.0,0.00030136,6]
[322920806,1713509449250,-500.0,0.00030136,6]
[322920807,1713509449259,-180.07347284,0.00030136,6]
[322920808,1713509449269,-500.0,0.00030136,6]
[322920809,1713509449278,-500.0,0.00030136,6]
[322920810,1713509449287,-500.0,0.00030136,6]
[322920811,1713509449296,-507.51980235,0.00030136,6]
[322920812,1713509449305,-500.0,0.00030136,6]
[322920813,1713509449314,-345.60753121,0.00030136,6]
[322920814,1713509449324,-500.0,0.00030136,6]
[322920815,1713509449336,-2292.28,0.00030136,6]
[322920816,1713509449353,-500.0,0.00030136,6]
[322920817,1713509449362,-500.0,0.00030136,6]
[322920818,1713509449371,-500.0,0.00030136,6]
[322920819,1713509449380,-505.50313858,0.00030136,6]
[322920820,1713509449389,-500.0,0.00030136,6]
[322920821,1713509449398,-500.0,0.00030136,6]
[322920822,1713509449407,-1089.17,0.00030136,6]
[322920823,1713509449416,-828.26,0.00030136,6]
[322920824,1713509449425,-500.0,0.00030136,6]
[322920825,1713509449434,-500.0,0.00030136,6]
[322920826,1713509449444,-526.33896731,0.00030136,6]
[322920827,1713509449453,-500.0,0.00030136,6]
[322920828,1713509449462,-505.43784696,0.00030136,6]
[322920829,1713509449471,-1042.2,0.00030136,6]
[322920830,1713509449480,-1042.2,0.00030136,6]
[322920831,1713509449489,-1042.2,0.00030136,6]
[322920832,1713509449499,-1042.2,0.00030136,6]
[322920833,1713509449508,-1042.2,0.00030136,6]
[322920834,1713509449517,-1042.2,0.00030136,6]
[322920835,1713509449527,-1042.2,0.00030136,6]
[322920836,1713509449536,-1042.2,0.00030136,6]
[322920837,1713509449546,-1042.2,0.00030136,6]
[322920838,1713509449556,-1042.2,0.00030136,6]
[322920839,1713509449566,-1042.2,0.00030136,6]
[322920840,1713509449575,-1042.2,0.00030136,6]
[322920841,1713509449589,-1042.2,0.00030136,6]
[322920842,1713509449598,-1042.2,0.00030136,6]
[322920843,1713509449608,-1042.2,0.00030136,6]
[322920844,1713509449617,-500.0,0.00030136,6]
[322920845,1713509449626,-1042.2,0.00030136,6]
[322920846,1713509449635,-1042.2,0.00030136,6]
[322920847,1713509449644,-1042.2,0.00030136,6]
[322920848,1713509449653,-500.0,0.00030136,6]
[322920849,1713509449662,-500.0,0.00030136,6]
[322920850,1713509449672,-500.0,0.00030136,6]
[322920851,1713509449681,-500.0,0.00030136,6]
[322920852,1713509449690,-562.95,0.00030136,6]
[322920853,1713509449700,-500.0,0.00030136,6]
[322920854,1713509449709,-634.74133647,0.00030136,6]
[322920855,1713509449718,-500.0,0.00030136,6]
[322920856,1713509449727,-500.0,0.00030136,6]
[322920857,1713509449736,-500.0,0.00030136,6]
[322920858,1713509449746,-500.0,0.00030136,6]
[322920859,1713509449755,-1306.27,0.00030136,6]
[322920860,1713509449764,-500.0,0.00030136,6]
[322920861,1713509449773,-500.0,0.00030136,6]
[322920862,1713509449782,-500.0,0.00030136,6]
[322920863,1713509449792,-649.06,0.00030136,6]
[322920864,1713509449801,-500.0,0.00030136,6]
[322920865,1713509449811,-500.0,0.00030136,6]
[322920866,1713509449820,-500.0,0.00030136,6]
[322920867,1713509449829,-500.0,0.00030136,6]
[322920868,1713509449842,-500.0,0.00030136,6]
[322920869,1713509449852,-500.0,0.00030136,6]
[322920870,1713509449861,-500.0,0.00030136,6]
[322920871,1713509449871,-500.0,0.00030136,6]
[322920872,1713509449882,-501.64,0.00030136,6]
[322920873,1713509449891,-943.59,0.00030136,6]
[322920874,1713509449901,-500.0,0.00030136,6]
[322920875,1713509449912,-151.0,0.00030136,2]
[322920876,1713509449922,-151.0,0.00030136,2]
[322920877,1713509449932,-151.0,0.00030136,2]
[322920878,1713509449946,-1488.15,0.00030136,6]
[322920879,1713509449956,-151.0,0.00030136,2]
[322920880,1713509449966,-160.534251,0.00030136,2]
[322920881,1713509449975,-500.0,0.00030136,6]
[322920882,1713509449984,-500.0,0.00030136,6]
[322920883,1713509449993,-500.0,0.00030136,6]
[322920884,1713509450002,-500.0,0.00030136,6]
[322920885,1713509450012,-500.0,0.00030136,6]
[322920886,1713509450021,-500.0,0.00030136,6]
[322920887,1713509450030,-500.0,0.00030136,6]
[322920888,1713509450039,-500.0,0.00030136,6]
[322920889,1713509450049,-500.0,0.00030136,6]
[322920890,1713509450059,-500.0,0.00030136,6]
[322920891,1713509450068,-500.0,0.00030136,6]
[322920892,1713509450077,-500.0,0.00030136,6]
[322920893,1713509450091,-500.0,0.00030136,6]
[322920894,1713509450100,-500.0,0.00030136,6]
[322920895,1713509450110,-500.0,0.00030136,6]
[322920896,1713509450120,-500.0,0.00030136,6]
[322920897,1713509450129,-500.0,0.00030136,6]
[322920898,1713509450139,-500.0,0.00030136,6]
[322920899,1713509450149,-576.80587406,0.00030136,6]
[322920900,1713509450158,-500.0,0.00030136,6]
[322920901,1713509450167,-500.0,0.00030136,6]
[322920902,1713509450176,-500.0,0.00030136,6]
[322920903,1713509450186,-1436.11,0.00030136,6]
[322920904,1713509450195,-500.0,0.00030136,6]
[322920905,1713509450204,-500.0,0.00030136,6]
[322920906,1713509450214,-500.0,0.00030136,6]
[322920907,1713509450224,-515.05417275,0.00030136,6]
[322920908,1713509450233,-500.0,0.00030136,6]
[322920909,1713509450242,-500.0,0.00030136,6]
[322920910,1713509450252,-500.0,0.00030136,6]
[322920911,1713509450262,-500.0,0.00030136,6]
[322920912,1713509450271,-500.0,0.00030136,6]
[322920913,1713509450280,-500.0,0.00030136,6]
[322920914,1713509450290,-606.95822692,0.00030136,6]
[322920915,1713509450299,-508.4208629,0.00030136,6]
[322920916,1713509450308,-503.91990682,0.00030136,6]
[322920917,1713509450318,-520.68233266,0.00030136,6]
[322920918,1713509450328,-500.0,0.00030136,6]
[322920919,1713509450340,-500.0,0.00030136,6]
[322920920,1713509450349,-500.0,0.00030136,6]
[322920921,1713509450358,-500.0,0.00030136,6]
[322920922,1713509450368,-500.0,0.00030136,6]
[322920923,1713509450378,-500.0,0.00030136,6]
[322920924,1713509450387,-1129.09,0.00030136,6]
[322920925,1713509450397,-500.0,0.00030136,6]
[322920926,1713509450407,-500.0,0.00030136,6]
[322920927,1713509450417,-500.0,0.00030136,6]
[322920928,1713509450427,-1909.72,0.00030136,6]
[322920929,1713509450436,-500.0,0.00030136,6]
[322920930,1713509450445,-500.0,0.00030136,6]
[322920931,1713509450454,-500.0,0.00030136,6]
[322920932,1713509450464,-500.0,0.00030136,6]
[322920933,1713509450473,-151.0,0.00030136,2]
[322920934,1713509450483,-151.0,0.00030136,2]
[322920935,1713509450493,-151.0,0.00030136,2]
[322920936,1713509450502,-151.0,0.00030136,2]
[322920937,1713509450511,-500.0,0.00030136,6]
[322920938,1713509450521,-500.0,0.00030136,6]
[322920939,1713509450531,-500.0,0.00030136,6]
[322920940,1713509450540,-500.0,0.00030136,6]
[322920941,1713509450550,-500.0,0.00030136,6]
[322920942,1713509450559,-500.0,0.00030136,6]
[322920943,1713509450569,-500.0,0.00030136,6]
[322920944,1713509450578,-500.0,0.00030136,6]
[322920945,1713509450590,-500.0,0.00030136,6]
[322920946,1713509450599,-500.0,0.00030136,6]
[322920947,1713509450609,-500.0,0.00030136,6]
[322920948,1713509450618,-518.73142102,0.00030136,6]
[322920949,1713509450628,-500.0,0.00030136,6]
[322920950,1713509450637,-500.0,0.00030136,6]
[322920951,1713509450646,-500.0,0.00030136,6]
[322920952,1713509450656,-500.0,0.00030136,6]
[322920953,1713509450665,-500.0,0.00030136,6]
[322920954,1713509450675,-500.0,0.00030136,6]
[322920955,1713509450684,-500.0,0.00030136,6]
[322920956,1713509450695,-500.0,0.00030136,6]
[322920957,1713509450705,-419.30042605,0.00030136,6]
[322920958,1713509450716,-500.0,0.00030136,6]
[322920959,1713509450725,-579.75906143,0.00030136,6]
[322920960,1713509450736,-503.83881694,0.00030136,4]
[322920961,1713509450746,-500.0,0.00030136,6]
[322920962,1713509450878,-500.0,0.00030136,6]
[322920963,1713509450888,-500.0,0.00030136,6]
[322920964,1713509450898,-500.0,0.00030136,6]
[322920965,1713509450908,-500.0,0.00030136,6]
[322920966,1713509450921,-1312.1,0.00030136,6]
[322920967,1713509450930,-500.0,0.00030136,6]
[322920968,1713509450944,-500.0,0.00030136,6]
[322920969,1713509450954,-500.0,0.00030136,6]
[322920970,1713509450965,-500.0,0.00030136,6]
[322920971,1713509450975,-500.0,0.00030136,6]
[322920972,1713509450985,-500.0,0.00030136,6]
[322920973,1713509450994,-254.50420718,0.00030136,6]
[322920974,1713509451004,-500.0,0.00030136,6]
[322920975,1713509451014,-1672.93037,0.00030136,2]
[322920976,1713509451023,-1672.93037,0.00030136,2]
[322920977,1713509451033,-1672.93037,0.00030136,2]
[322920978,1713509451042,-1672.93037,0.00030136,2]
[322920979,1713509451051,-1672.93037,0.00030136,2]
[322920980,1713509451061,-1672.93037,0.00030136,2]
[322920981,1713509451070,-1672.93037,0.00030136,2]
[322920982,1713509451080,-1672.93037,0.00030136,2]
[322920983,1713509451092,-500.0,0.00030136,6]
[322920984,1713509451101,-1672.93037,0.00030136,2]
[322920985,1713509451111,-1672.93037,0.00030136,2]
[322920986,1713509451121,-1672.93037,0.00030136,2]
[322920987,1713509451130,-1672.93037,0.00030136,2]
[322920988,1713509451140,-1672.93037,0.00030136,2]
[322920989,1713509451150,-500.0,0.00030136,6]
[322920990,1713509451159,-1672.93037,0.00030136,2]
[322920991,1713509451169,-1672.93037,0.00030136,2]
[322920992,1713509451179,-1672.93037,0.00030136,2]
[322920993,1713509451189,-500.0,0.00030136,6]
[322920994,1713509451198,-500.0,0.00030136,6]
[322920995,1713509451208,-500.0,0.00030136,6]
[322920996,1713509451217,-7304.6,0.00030136,6]
[322920997,1713509451226,-500.0,0.00030136,6]
[322920998,1713509451236,-500.0,0.00030136,6]
[322920999,1713509451245,-500.0,0.00030136,6]
[322921000,1713509451255,-517.6572946,0.00030136,6]
[322921001,1713509451264,-1547.25,0.00030136,6]
[322921002,1713509451273,-23134.52,0.00030136,6]
[322921003,1713509451282,-500.0,0.00030136,6]
[322921004,1713509451292,-504.75123449,0.00030136,6]
[322921005,1713509451301,-9600.46,0.00030136,6]
[322921006,1713509451311,-152.20228992,0.00030136,6]
[322921007,1713509451321,-527.00000073,0.00030136,6]
[322921008,1713509451330,-868.83,0.00030136,6]
[322921009,1713509451341,-500.0,0.00030136,6]
[322921010,1713509451350,-899.88,0.00030136,6]
[322921011,1713509451359,-500.0,0.00030136,6]
[322921012,1713509451368,-1388.93,0.00030136,6]
[322921013,1713509451377,-500.0,0.00030136,6]
[322921014,1713509451387,-500.0,0.00030136,6]
[322921015,1713509451396,-875.02,0.00030136,6]
[322921016,1713509451406,-500.0,0.00030136,6]
[322921017,1713509451415,-500.0,0.00030136,6]
[322921018,1713509451425,-500.0,0.00030136,6]
[322921019,1713509451434,-19322.37,0.00030136,6]
[322921020,1713509451443,-500.0,0.00030136,6]
[322921021,1713509451452,-500.0,0.00030136,6]
[322921022,1713509451461,-675.93,0.00030136,6]
[322921023,1713509451470,-500.0,0.00030136,6]
[322921024,1713509451479,-500.0,0.00030136,6]
[322921025,1713509451488,-500.0,0.00030136,6]
[322921026,1713509451497,-500.0,0.00030136,6]
[322921027,1713509451506,-790.849463,0.00030136,2]
[322921028,1713509451516,-500.0,0.00030136,6]
[322921029,1713509451525,-500.0,0.00030136,6]
[322921030,1713509451535,-790.849463,0.00030136,2]
[322921031,1713509451544,-790.849463,0.00030136,2]
[322921032,1713509451566,-500.0,0.00030136,6]
[322921033,1713509451576,-790.849463,0.00030136,2]
[322921034,1713509451587,-500.0,0.00030136,6]
[322921035,1713509451598,-790.849463,0.00030136,2]
[322921036,1713509451608,-790.849463,0.00030136,2]
[322921037,1713509451618,-790.849463,0.00030136,2]
[322921038,1713509451628,-500.0,0.00030136,6]
[322921039,1713509451638,-790.849463,0.00030136,2]
[322921040,1713509451648,-790.849463,0.00030136,2]
[322921041,1713509451659,-790.849463,0.00030136,2]
[322921042,1713509451669,-790.849463,0.00030136,2]
[322921043,1713509451679,-790.849463,0.00030136,2]
[322921044,1713509451689,-790.849463,0.00030136,2]
[322921045,1713509451699,-790.849463,0.00030136,2]
[322921046,1713509451709,-790.849463,0.00030136,2]
[322921047,1713509451720,-790.849463,0.00030136,2]
[322921048,1713509451731,-500.0,0.00030136,6]
[322921049,1713509451740,-500.0,0.00030136,6]
[322921050,1713509451751,-905.02,0.00030136,6]
[322921051,1713509451760,-500.0,0.00030136,6]
[322921052,1713509451770,-502.70888306,0.00030136,6]
[322921053,1713509451779,-500.0,0.00030136,6]
[322921054,1713509451789,-500.0,0.00030136,6]
[322921055,1713509451799,-1236.75,0.00030136,6]
[322921056,1713509451809,-500.0,0.00030136,6]
[322921057,1713509451819,-515.0,0.00030136,6]
[322921058,1713509451829,-500.0,0.00030136,6]
[322921059,1713509451841,-502.83,0.00030136,6]
[322921060,1713509451851,-866.76,0.00030136,6]
[322921061,1713509451861,-500.0,0.00030136,6]
[322921062,1713509451871,-500.0,0.00030136,6]
[322921063,1713509451881,-729.18,0.00030136,6]
[322921064,1713509451892,-642.75,0.00030136,6]
[322921065,1713509451904,-500.0,0.00030136,6]
[322921066,1713509451917,-500.0,0.00030136,6]
[322921067,1713509451928,-500.0,0.00030136,6]
[322921068,1713509451939,-500.0,0.00030136,6]
[322921069,1713509451949,-577.75,0.00030136,6]
[322921070,1713509451958,-500.0,0.00030136,6]
[322921071,1713509451967,-500.0,0.00030136,6]
[322921072,1713509451979,-151.0,0.00030136,2]